[Event "Hungarian Youth-ch U18 2022"]
[Site "Eger"]
[Date "2022.07.30"]
[Round "8.5"]
[White "Somogyi, Barbara"]
[Black "Juhasz, Judit"]
[Result "1/2-1/2"]
[ECO "B32"]
[WhiteElo "1682"]
[BlackElo "2037"]
[Annotator "TA"]
[PlyCount "93"]
[EventDate "2022.07.21"]
[EventType "tourn"]
[EventCountry "HUN"]
[SourceTitle "playchess.com"]
[Source "ChessBase"]
[SourceQuality "1"]
[TimeControl "40/5400+30:1800+30"]

{[%evp 23,93,21,17,6,36,39,37,19,19,0,28,0,113,101,164,156,158,0,0,0,10,0,103,0,0,-28,118,56,98,-3,215,122,411,95,322,271,261,281,266,273,284,259,264,185,243,243,314,289,294,282,401,403,383,284,407,384,382,368,414,391,408,400,433,461,621,227,204,127,125,124,136,0]} 1. e4 {[%emt 0:00:31]} c5 {[%emt 0:00:48]} 2. Nf3 {[%emt 0:00:06]} Nc6 {[%emt 0:00:23]} 3. d4 {[%emt 0:00:08]} cxd4 {[%emt 0:00:05]} 4. Nxd4 {[%emt 0:00:06]} Qb6 {[%emt 0:00:03]} 5. Nb5 {[%emt 0:00:32]} a6 {[%emt 0:01:29]} 6. Be3 {[%emt 0:00:15]} Qa5+ {[%emt 0:00:50]} 7. N5c3 {[%emt 0:00:13]} Nf6 {[%emt 0:00:34]} 8. Nd2 {[%emt 0:00:49]} b5 {[%emt 0:01:12]} 9. Nb3 {[%emt 0:01:58]} Qc7 {[%emt 0:00:28]} 10. Bd3 {[%emt 0:04:35]} e6 {[%emt 0:00:49]} 11. O-O {[%emt 0:02:26]} Be7 {[%emt 0:07:50]} 12. f4 {[%emt 0:01:43]} d6 {[%emt 0:00:04]} 13. Qf3 {[%emt 0:03:37][%cal Oe4e5] B57: Classical Sicilian: Sozin with 6...Qb6.} Nb4 {[%emt 0:05:11]} 14. Rac1 {[%emt 0:08:45]} (14. a3 Nxd3 15. cxd3) 14... Bb7 {[%emt 0:04:03] [#]} 15. a3 $146 {[%emt 0:05:01] White is slightly better.} ({Predecessor:} 15. Qh3 e5 16. Nd2 Qd7 17. f5 d5 18. Bg5 d4 19. Ne2 Nxa2 20. Ra1 Nb4 21. Nf3 Nc6 22. Bd2 Qc7 23. g4 {1-0 (72) Van der Sluijs,L-Adema,R Alkmaar 1983}) 15... Nc6 {[%emt 0:04:21]} 16. a4 {[%emt 0:03:21]} b4 {[%emt 0:00:40]} 17. Ne2 {[%emt 0:01:55]} d5 {[%emt 0:02:52]} (17... O-O $11) 18. e5 $16 {[%emt 0:04:38]} Nd7 {[%emt 0:05:56]} (18... Ne4 $16 {was called for.}) 19. Ned4 $18 {[%emt 0:06:11]} Rc8 {[%emt 0:08:29]} 20. Nxe6 {[%emt 0:18:30]} fxe6 $11 {[%emt 0:00:38]} 21. Qh5+ {[%emt 0:00:17]} Kd8 {[%emt 0:01:04][%cal Od5d4]} 22. Qf7 {[%emt 0:02:13]} Na5 {[%emt 0:06:08]} (22... g5 23. Qxe6 d4 24. Nxd4 Bc5) (22... g5 $11 23. Qxe6 d4 24. Nxd4 Nxd4 25. Bxd4 Bc5) 23. Nd4 {[%emt 0:02:25]} (23. Qxe6 Nxb3 24. cxb3 Bc5) (23. Qxg7 Re8 24. f5) (23. Qxe6 $6 Nxb3 24. cxb3 Bc5 $15) (23. Qxg7 $16 Re8 24. Nd4) 23... Nc5 {[%emt 0:00:56]} 24. Qxg7 {[%emt 0:09:39]} (24. Nxe6+ Nxe6 25. Qxe6 Nc4 26. Bxc4 Qxc4) (24. c3 b3 25. Rcd1 (25. Nxe6+ Nxe6 26. Qxe6 Bc5) (25. Qxg7 Kd7)) (24. Nxe6+ Nxe6 25. Qxe6 Nc4 26. Bxc4 Qxc4 $17) (24. c3 $5 b3 25. Rcd1 $15 (25. Nxe6+ Nxe6 26. Qxe6 Bc5 $15) (25. Qxg7 Kd7 $11)) 24... Re8 {[%emt 0:03:28]} (24... Kd7 $1 $11 {keeps the balance.} 25. f5 Rcg8) 25. Bxh7 {[%emt 0:03:21]} (25. f5) ({White should try} 25. f5 $16) 25... Bf8 {[%emt 0:03:24]} 26. Qg6 {[%emt 0:05:10] 0x0.001e3cf10562dp-1022s more active pieces.} (26. Qf6+ Qe7) (26. Qg5+ Be7 27. Qg4) ({Don't play} 26. Qf6+ $6 Qe7 $11) (26. Qg5+ $1 $16 Be7 27. Qh6) 26... Re7 $2 {[%emt 0:06:51] [#]} (26... Nc4 $11 {and Black stays safe.} 27. Bf2 Qg7) 27. Bg8 {[%emt 0:06:58]} ({White has to play} 27. f5 $1 $18 {[%cal Rf5e6]} Qxe5 28. Rce1) 27... Kd7 {[%emt 0:04:14][%mdl 8192]} (27... Rg7 $16 28. Qf6+ (28. Nxe6+ Nxe6 29. Qf6+ Be7 $17) 28... Qe7 29. Bxe6 Rc7) 28. h4 $2 {[%emt 0:01:06]} (28. c3 $18 b3 29. Rce1) 28... Bg7 $2 {[%emt 0:15:39] [#]} (28... Nc4 $16 29. Bf2 Rce8) 29. Nxe6 $1 {[%emt 0:02:11][%mdl 512] Dancing on a razor blade.} Nxe6 {[%emt 0:00:54]} 30. Bxe6+ {[%emt 0:00:06][%mdl 64] Remove Defender} Rxe6 {[%emt 0:00:09]} 31. Qxg7+ {[%emt 0:00:10]} Kc6 {[%emt 0:00:54]} 32. Qxc7+ {[%emt 0:00:54]} Rxc7 {[%emt 0:01:43]} 33. Bd4 {[%emt 0:00:53] Black must now prevent f5.} Bc8 {[%emt 0:02:06]} (33... Rh6 {might work better.}) 34. f5 $18 {[%emt 0:00:30]} Rh6 {[%emt 0:00:07]} 35. Rf4 {[%emt 0:01:25]} Rf7 {[%emt 0:02:35] [#]} 36. Rcf1 $1 {[%emt 0:00:50]} Nc4 {[%emt 0:00:10]} (36... Rxf5 $142 37. Rxf5 Bxf5) 37. e6 {[%emt 0:00:40]} Rfh7 {[%emt 0:00:03]} 38. g3 {[%emt 0:02:27] aiming for Re1.} Nd2 {[%emt 0:02:26]} (38... Nd6 $142 39. Re1 Re7) 39. Re1 {[%emt 0:01:07]} Ne4 {[%emt 0:00:11]} 40. Rg4 {[%emt 0:00:00]} Kd6 {[%emt 0:00:00]} 41. c4 {[%emt 0:10:02] Strongly threatening cxd5.} bxc3 {[%emt 0:10:43]} 42. bxc3 {[%emt 0:00:20]} Rh5 {[%emt 0:05:12]} 43. Rg8 {[%emt 0:07:30]} Rc7 {[%emt 0:04:43]} 44. Rb1 $2 {[%emt 0:03:54]} (44. Rd8+ Bd7 45. exd7 Rxd7 46. Ra8 Rxf5 47. Rxa6+ Kc7 48. Kg2) 44... Rxf5 {[%emt 0:05:40]} 45. Rb6+ {[%emt 0:05:50]} Ke7 {[%emt 0:00:16]} 46. Rg7+ {[%emt 0:00:12][%mdl 1024] White has strong compensation.} Kd8 {[%emt 0:00:06] [#]} 47. Rg8+ {[%emt 0:01:51] Weighted Error Value: White=0.61/Black=0.77} (47. Rg6 $1 $16) 1/2-1/2

[Event "Hungarian Youth-ch U18 2022"]
[Site "Eger"]
[Date "2022.07.30"]
[Round "8.6"]
[White "Koltai, Dora"]
[Black "Sulyok, Eszter"]
[Result "0-1"]
[ECO "B43"]
[WhiteElo "1764"]
[BlackElo "2091"]
[Annotator "TA"]
[PlyCount "86"]
[EventDate "2022.07.21"]
[EventType "tourn"]
[EventCountry "HUN"]
[SourceTitle "playchess.com"]
[Source "ChessBase"]
[SourceQuality "1"]
[TimeControl "40/5400+30:1800+30"]

{[%evp 17,86,41,42,0,112,0,0,0,0,-10,27,-2,0,0,0,6,13,13,13,13,60,60,108,53,62,0,50,24,22,39,8,0,57,-112,-94,-110,-120,-129,-116,-255,-251,-458,-455,-6199,-5855,-6103,-6039,-5971,-5302,-3213,-2379,-29977,-29978,-29978,-29979,-29981,-29982,-29982,-29983,-29983,-29984,-29985,-29986,-29986,-29986,-29986,-29984,-29984,-29985,-29985,-29986]} 1. e4 {[%emt 0:00:46]} c5 {[%emt 0:00:54]} 2. Nf3 {[%emt 0:00:06]} e6 {[%emt 0:00:04]} 3. d4 {[%emt 0:00:03]} cxd4 {[%emt 0:00:04]} 4. Nxd4 {[%emt 0:00:05]} a6 {[%emt 0:01:06]} 5. Nc3 {[%emt 0:00:38]} Qc7 {[%emt 0:00:20]} 6. Bd3 {[%emt 0:02:19]} Bc5 {[%emt 0:00:59]} 7. Nb3 {[%emt 0:03:10]} Be7 {[%emt 0:01:44]} 8. O-O {[%emt 0:02:50]} Nf6 {[%emt 0:00:37]} 9. f4 {[%emt 0:02:08]} d6 {[%emt 0:03:41]} 10. Kh1 {[%emt 0:01:37] B43: Sicilian: Kan Variation: 5 Nc3.} b5 {[%emt 0:08:42] [#]} (10... Nbd7) (10... Nbd7 $11) 11. Qf3 {[%emt 0:07:03]} (11. e5 dxe5 12. fxe5) (11. e5 $1 $16 {[%cal Re5f6]} dxe5 12. fxe5) 11... Bb7 {[%emt 0:01:43]} 12. a3 {[%emt 0:14:05] The position is equal.} Nbd7 {[%emt 0:18:00]} 13. Bd2 {[%emt 0:06:57]} Nc5 {[%emt 0:13:35]} 14. Nd4 {[%emt 0:06:17]} d5 {[%emt 0:09:49][%cal Rd5e4]} 15. e5 {[%emt 0:03:56]} Nfe4 {[%emt 0:01:14] [#]} 16. Bxe4 $146 {[%emt 0:06:00]} ({Predecessor:} 16. Be1 O-O 17. Qh5 Rfe8 18. Nd1 Qb6 19. Rf3 Nxd3 20. Rxd3 Rac8 21. c3 Bc5 22. Ne3 f5 23. exf6 Nxf6 24. Qh3 e5 25. fxe5 {½-½ (24) Zuriel,M (2178)-Antunes,L (2061) Florianopolis 2020}) 16... Nxe4 {[%emt 0:00:55]} 17. Nxe4 {[%emt 0:00:15]} dxe4 {[%emt 0:00:06]} 18. Qg3 {[%emt 0:04:26]} O-O-O {[%emt 0:04:15]} (18... Bc5 19. c3 (19. Qxg7 O-O-O) 19... g6) (18... Bc5 $11 19. c3 (19. Qxg7 $2 O-O-O $19) 19... g6) 19. Be3 {[%emt 0:06:48]} Bc5 {[%emt 0:07:39]} (19... g6 $14) 20. Rfd1 {[%emt 0:06:21]} (20. c3 $16) 20... Rhg8 {[%emt 0:05:32]} 21. b4 {[%emt 0:10:05]} (21. c3 $14) 21... Bb6 {[%emt 0:01:47]} ({Black should play} 21... Bxd4 $11 22. Bxd4 Qc4) 22. Nb3 {[%emt 0:02:09]} (22. c3 $5) 22... Bxe3 {[%emt 0:08:04]} (22... Qxc2 $2 23. Rdc1 Rd1+ 24. Rxd1 $18) 23. Qxe3 {[%emt 0:00:08]} g5 $36 {[%emt 0:01:50][%mdl 2048] Black has some pressure.} 24. fxg5 {[%emt 0:06:40]} Qxe5 {[%emt 0:02:25]} (24... Rxd1+ $1 $11 25. Rxd1 Qxe5) 25. Qc5+ $2 {[%emt 0:02:41]} (25. Rxd8+ $1 $14 Rxd8 26. Kg1) 25... Qxc5 $17 {[%emt 0:01:10]} 26. Nxc5 {[%emt 0:00:07]} Rxd1+ {[%emt 0:00:40]} (26... Bd5 {with more complications.} 27. a4 e3 28. h4 h6) 27. Rxd1 {[%emt 0:00:02]} Rxg5 {[%emt 0:00:13]} 28. Nxb7 {[%emt 0:01:34] Now White is beyond hope.} (28. Re1 $17) 28... Kxb7 {[%emt 0:00:06][%mdl 4096] Endgame KR-KR} 29. Rd7+ $2 {[%emt 0:00:56]} (29. Kg1) 29... Kc6 $19 {[%emt 0:00:26]} 30. Rxf7 {[%emt 0:00:56]} (30. Rd1 $142 Rd5 31. Rc1) 30... Rf5 {[%emt 0:01:07]} 31. Rxf5 {[%emt 0:00:33]} exf5 {[%emt 0:00:04] KP-KP} 32. Kg1 {[%emt 0:02:49]} Kd5 {[%emt 0:01:06]} 33. Kf2 {[%emt 0:00:14]} Kd4 {[%emt 0:00:55] [#] ...Kc3 is the strong threat.} 34. h3 {[%emt 0:01:05]} Kc3 {[%emt 0:00:58] Black mates.} 35. Ke3 {[%emt 0:00:23]} Kxc2 {[%emt 0:00:52]} 36. g4 {[%emt 0:01:14]} fxg4 {[%emt 0:00:27]} 37. hxg4 {[%emt 0:00:06]} Kb3 {[%emt 0:00:08]} 38. Kxe4 {[%emt 0:00:29]} Kxa3 {[%emt 0:00:04]} 39. Kf5 {[%emt 0:00:21]} Kxb4 {[%emt 0:00:05] KP-KP} 40. Kg5 {[%emt 0:00:00]} a5 {[%emt 0:00:00][%cal Ba6a5,Ba5a4,Ba4a3,Ba3a2][%mdl 32]} 41. Kh6 {[%emt 0:00:14]} a4 {[%emt 0:00:10]} 42. Kxh7 {[%emt 0:00:06]} a3 {[%emt 0:00:02]} 43. g5 {[%emt 0:00:10]} a2 {[%emt 0:00:08] Weighted Error Value: White=0.64/Black=0.30} 0-1

[Event "Hungarian Youth-ch U18 2022"]
[Site "Eger"]
[Date "2022.07.30"]
[Round "8.7"]
[White "Kiss, Eniko"]
[Black "Ivan, Reka Gyongyver"]
[Result "0-1"]
[ECO "A18"]
[WhiteElo "1646"]
[BlackElo "1877"]
[Annotator "NA RC COMBH"]
[PlyCount "80"]
[EventDate "2022.07.21"]
[EventType "tourn"]
[EventCountry "HUN"]
[SourceTitle "playchess.com"]
[Source "ChessBase"]
[SourceQuality "1"]
[TimeControl "40/5400+30:1800+30"]

1. c4 {[%emt 0:02:30]} Nf6 {[%emt 0:00:48]} 2. Nc3 {[%emt 0:00:28]} e6 {[%emt 0:00:19]} 3. e4 {[%emt 0:00:32]} d6 {[%emt 0:00:24]} 4. g3 {[%emt 0:03:11]} b6 {[%emt 0:01:06]} 5. Bg2 {[%emt 0:00:06]} Bb7 {[%emt 0:00:04]} 6. Nge2 {[%emt 0:00:15]} c5 {[%emt 0:01:17]} 7. d4 {[%emt 0:00:14]} cxd4 {[%emt 0:00:35]} 8. Nxd4 {[%emt 0:00:03]} a6 {[%emt 0:00:25]} 9. O-O {[%emt 0:01:44]} Qc7 {[%emt 0:00:15]} 10. Qd3 {[%emt 0:00:38]} Nbd7 {[%emt 0:00:23]} 11. Bd2 {[%emt 0:05:55]} ({White should try} 11. Qe2 $14) 11... Ne5 {[%emt 0:03:59]} 12. Qe2 {[%emt 0:01:08]} Qxc4 {[%emt 0:01:35]} 13. Be3 {[%emt 0:02:28]} Qxe2 {[%emt 0:03:10]} 14. Ndxe2 {[%emt 0:00:03]} b5 {[%emt 0:00:22]} 15. b3 {[%emt 0:00:13]} Be7 {[%emt 0:00:46]} 16. Bd4 {[%emt 0:03:28]} (16. a3 $17 {might work better.}) 16... Nc6 {[%emt 0:01:45]} ({Black should try} 16... g5 17. h3 Rg8) 17. e5 {[%emt 0:04:26]} dxe5 {[%emt 0:00:09]} 18. Bxe5 {[%emt 0:00:20]} O-O {[%emt 0:01:04]} 19. Kh1 {[%emt 0:00:58]} ({White should play} 19. Bxf6 Bxf6 20. Rac1) 19... Na5 {[%emt 0:01:51]} (19... b4 $19 20. Ne4 Nxe5 21. Nxf6+ gxf6 22. Bxb7 Ra7) 20. f3 {[%emt 0:01:19]} (20. h3 $142) 20... Rac8 {[%emt 0:02:28]} 21. Rac1 {[%emt 0:00:54]} Rfd8 {[%emt 0:05:02]} 22. Rc2 {[%emt 0:01:49]} b4 {[%emt 0:01:33]} 23. Rfc1 {[%emt 0:00:24]} bxc3 {[%emt 0:00:10]} 24. Bxc3 {[%emt 0:00:02]} Nc6 {[%emt 0:00:39]} 25. f4 {[%emt 0:00:05]} Nd5 {[%emt 0:00:28]} 26. Bd2 {[%emt 0:00:25]} Ba3 {[%emt 0:06:37]} 27. Re1 {[%emt 0:00:44]} Ndb4 $19 {[%emt 0:02:47]} 28. Bxb4 {[%emt 0:00:18]} Nxb4 {[%emt 0:00:05]} 29. Rxc8 {[%emt 0:00:11]} Bxg2+ {[%emt 0:00:12]} 30. Kxg2 {[%emt 0:00:12]} Rxc8 {[%emt 0:00:04]} 31. Rd1 {[%emt 0:00:24]} g6 {[%emt 0:00:25]} 32. Kf1 {[%emt 0:01:00]} Nd5 {[%emt 0:00:14]} 33. Rd3 {[%emt 0:00:20]} Rc2 {[%emt 0:00:29]} 34. Nd4 {[%emt 0:00:11]} Rxh2 {[%emt 0:00:23]} 35. Nc6 {[%emt 0:00:13]} Rxa2 {[%emt 0:00:48]} 36. Ne5 {[%emt 0:00:06]} Bc5 {[%emt 0:00:33]} 37. Nc4 {[%emt 0:00:22]} Kg7 {[%emt 0:00:39]} 38. Ke1 {[%emt 0:00:39]} Rg2 {[%emt 0:01:01]} 39. Kf1 {[%emt 0:00:06]} Rh2 {[%emt 0:01:18]} 40. Ke1 {[%emt 0:00:00]} h5 {[%emt 0:00:00]} 0-1

[Event "Hungarian Youth-ch U18 2022"]
[Site "Eger"]
[Date "2022.07.31"]
[Round "9.1"]
[White "Baski, Barnabas"]
[Black "Karacsonyi, Gellert"]
[Result "0-1"]
[ECO "A45"]
[WhiteElo "2142"]
[BlackElo "2338"]
[Annotator "RC"]
[PlyCount "80"]
[EventDate "2022.07.21"]
[EventType "tourn"]
[EventCountry "HUN"]
[SourceTitle "playchess.com"]
[Source "ChessBase"]
[SourceQuality "1"]
[TimeControl "40/5400+30:1800+30"]

1. d4 {[%emt 0:00:33]} Nf6 {[%emt 0:00:39]} 2. Bg5 {[%emt 0:00:11]} d5 {[%emt 0:01:22]} 3. e3 {[%emt 0:00:10]} e6 {[%emt 0:00:40]} 4. Nd2 {[%emt 0:00:51]} Be7 {[%emt 0:00:25]} 5. c3 {[%emt 0:00:53]} b6 {[%emt 0:02:15]} 6. f4 {[%emt 0:05:03]} O-O {[%emt 0:03:20]} 7. Bd3 {[%emt 0:01:24]} Ba6 {[%emt 0:04:36]} 8. Bxa6 {[%emt 0:02:17]} Nxa6 {[%emt 0:00:07]} 9. Ngf3 {[%emt 0:01:06]} c5 {[%emt 0:15:43]} 10. Qe2 {[%emt 0:02:30]} Nb8 {[%emt 0:02:32]} 11. Ne5 {[%emt 0:05:59]} Nfd7 {[%emt 0:01:45]} 12. Bxe7 {[%emt 0:03:48]} Qxe7 {[%emt 0:00:55]} 13. O-O {[%emt 0:01:41]} f5 {[%emt 0:02:55]} 14. Ndf3 {[%emt 0:10:36]} Nxe5 {[%emt 0:00:41]} 15. Nxe5 {[%emt 0:00:31]} Nd7 {[%emt 0:00:42]} 16. Nxd7 {[%emt 0:05:28]} Qxd7 {[%emt 0:00:07]} 17. Kh1 {[%emt 0:06:01]} a5 {[%emt 0:07:33]} 18. g4 {[%emt 0:07:46]} c4 {[%emt 0:00:38]} 19. g5 {[%emt 0:15:23]} b5 {[%emt 0:00:39]} 20. Rfc1 {[%emt 0:00:09]} Rfc8 {[%emt 0:04:07]} 21. a3 {[%emt 0:03:59]} Rab8 {[%emt 0:02:37]} 22. Rc2 {[%emt 0:02:04]} Rb6 {[%emt 0:00:28]} 23. Kg2 {[%emt 0:01:24]} Qb7 {[%emt 0:01:29]} 24. Qf2 {[%emt 0:02:58]} Ra8 {[%emt 0:00:35]} 25. Rac1 {[%emt 0:01:31]} Rba6 {[%emt 0:02:38]} 26. Qe2 {[%emt 0:01:58]} b4 {[%emt 0:01:55]} 27. axb4 {[%emt 0:00:18]} axb4 {[%emt 0:00:09]} 28. Qf2 {[%emt 0:03:16]} Ra1 {[%emt 0:02:47]} 29. Qe1 {[%emt 0:04:01]} R1a4 {[%emt 0:02:33]} 30. Qf2 {[%emt 0:00:20]} Ra2 {[%emt 0:01:08]} 31. Qe2 {[%emt 0:01:13]} Qa6 {[%emt 0:07:59]} 32. Qf2 {[%emt 0:04:07]} Qa4 {[%emt 0:03:05]} 33. Qe2 {[%emt 0:01:20]} Qb3 {[%emt 0:00:39]} 34. Kf3 {[%emt 0:01:08]} Ra1 {[%emt 0:01:01]} 35. Qd2 {[%emt 0:01:08]} Rxc1 {[%emt 0:04:18]} 36. Qxc1 {[%emt 0:00:48]} Ra2 {[%emt 0:00:10]} 37. cxb4 {[%emt 0:01:17]} Qxb4 {[%emt 0:00:07]} 38. h4 {[%emt 0:02:57]} Qa4 {[%emt 0:00:44]} 39. Rc3 {[%emt 0:00:37]} Ra1 {[%emt 0:00:58]} 40. Ra3 {[%emt 0:00:00]} Qxa3 {[%emt 0:00:00]} 0-1

[Event "Hungarian Youth-ch U18 2022"]
[Site "Eger"]
[Date "2022.07.31"]
[Round "9.2"]
[White "Reviczki, Roland"]
[Black "Forgacs, Attila Jr."]
[Result "1/2-1/2"]
[ECO "C84"]
[WhiteElo "2160"]
[BlackElo "2215"]
[Annotator "RC"]
[PlyCount "119"]
[EventDate "2022.07.21"]
[EventType "tourn"]
[EventCountry "HUN"]
[SourceTitle "playchess.com"]
[Source "ChessBase"]
[SourceQuality "1"]
[TimeControl "40/5400+30:1800+30"]

1. e4 {[%emt 0:00:33]} e5 {[%emt 0:00:33]} 2. Nf3 {[%emt 0:00:06]} Nc6 {[%emt 0:00:04]} 3. Bb5 {[%emt 0:00:05]} a6 {[%emt 0:00:05]} 4. Ba4 {[%emt 0:00:03]} Nf6 {[%emt 0:00:05]} 5. O-O {[%emt 0:00:07]} Be7 {[%emt 0:00:08]} 6. d4 {[%emt 0:00:06]} exd4 {[%emt 0:00:33]} 7. e5 {[%emt 0:00:06]} Ne4 {[%emt 0:00:57]} 8. Nxd4 {[%emt 0:00:09]} O-O {[%emt 0:02:44]} 9. Nf5 {[%emt 0:01:21]} d5 {[%emt 0:05:06]} 10. Nxe7+ {[%emt 0:04:49]} Nxe7 {[%emt 0:01:49]} 11. c3 {[%emt 0:00:18]} Bf5 {[%emt 0:11:56]} 12. Be3 {[%emt 0:02:09]} Bg6 {[%emt 0:11:26]} 13. f3 {[%emt 0:20:34]} Nf5 {[%emt 0:00:32]} 14. Bd4 {[%emt 0:00:44]} Ng5 {[%emt 0:01:30]} 15. Bc5 {[%emt 0:02:37]} Ne7 {[%emt 0:09:29]} 16. f4 {[%emt 0:10:10]} Ne4 {[%emt 0:02:28]} 17. Bxe7 {[%emt 0:00:45]} Qxe7 {[%emt 0:00:05]} 18. f5 {[%emt 0:00:48]} Qc5+ {[%emt 0:01:33]} 19. Qd4 {[%emt 0:01:05]} Bh5 {[%emt 0:02:39]} 20. Rf4 {[%emt 0:14:21]} Qxd4+ {[%emt 0:03:14]} 21. cxd4 {[%emt 0:00:09]} g5 {[%emt 0:03:07]} 22. fxg6 {[%emt 0:07:27]} Bxg6 {[%emt 0:03:42]} 23. Nc3 {[%emt 0:02:36]} Rad8 {[%emt 0:05:28]} 24. Rd1 {[%emt 0:12:27]} Ng5 {[%emt 0:10:03]} 25. b4 {[%emt 0:00:56]} Kg7 {[%emt 0:01:31]} 26. Rf6 {[%emt 0:01:28]} h6 {[%emt 0:03:47]} 27. Rd2 {[%emt 0:03:19]} Nh7 {[%emt 0:01:04]} 28. Rf3 {[%emt 0:00:09]} c6 {[%emt 0:01:37]} 29. Rg3 {[%emt 0:00:42]} Kh8 {[%emt 0:05:32]} 30. Rh3 {[%emt 0:00:06]} Kg7 {[%emt 0:01:18]} 31. Rg3 {[%emt 0:00:11]} Kh8 {[%emt 0:00:08]} 32. h4 {[%emt 0:08:47]} Rg8 {[%emt 0:01:53]} 33. Rf2 {[%emt 0:01:04]} Rdf8 {[%emt 0:01:21]} 34. Bd1 {[%emt 0:03:10]} f6 {[%emt 0:02:50]} 35. e6 {[%emt 0:00:18]} Re8 {[%emt 0:01:27]} 36. Re3 {[%emt 0:01:48]} Re7 {[%emt 0:01:11]} 37. Na4 {[%emt 0:00:49]} Be4 {[%emt 0:01:02]} 38. Nc5 {[%emt 0:01:12]} f5 {[%emt 0:00:19]} 39. Nxe4 {[%emt 0:00:27]} fxe4 {[%emt 0:00:34]} 40. Bh5 {[%emt 0:00:00]} Rgg7 {[%emt 0:00:00]} 41. Bf7 {[%emt 0:11:22]} Rg4 {[%emt 0:08:46]} 42. g3 {[%emt 0:01:43]} Rg7 {[%emt 0:07:52]} 43. Kh2 {[%emt 0:06:03]} Nf8 {[%emt 0:02:44]} 44. Rf6 {[%emt 0:00:12]} Rh7 {[%emt 0:02:34]} 45. Re1 {[%emt 0:08:23]} Kg7 {[%emt 0:01:21]} 46. Ref1 {[%emt 0:00:05]} e3 {[%emt 0:01:54]} 47. R6f3 {[%emt 0:03:08]} e2 {[%emt 0:01:29]} 48. Re1 {[%emt 0:00:04]} Nxe6 {[%emt 0:01:22]} 49. Bxe6 {[%emt 0:00:05]} Rxe6 {[%emt 0:00:06]} 50. Rf2 {[%emt 0:00:09]} Kg6 {[%emt 0:02:58]} 51. Rfxe2 {[%emt 0:01:06]} Rxe2+ {[%emt 0:01:43]} 52. Rxe2 {[%emt 0:01:45]} Kf6 {[%emt 0:01:28]} 53. g4 {[%emt 0:00:34]} Rh8 {[%emt 0:01:17]} 54. Kg3 {[%emt 0:00:38]} a5 {[%emt 0:00:48]} 55. bxa5 {[%emt 0:01:31]} Ra8 {[%emt 0:00:18]} 56. Kf4 {[%emt 0:00:28]} Rxa5 {[%emt 0:00:16]} 57. g5+ {[%emt 0:00:09]} hxg5+ {[%emt 0:00:04]} 58. hxg5+ {[%emt 0:00:04]} Kg6 {[%emt 0:00:34]} 59. Rb2 {[%emt 0:01:44]} Ra4 {[%emt 0:02:03]} 60. Ke5 {[%emt 0:02:11]} 1/2-1/2

[Event "Hungarian Youth-ch U18 2022"]
[Site "Eger"]
[Date "2022.07.31"]
[Round "9.3"]
[White "Virag, Balint"]
[Black "Juhasz, Agoston"]
[Result "1-0"]
[ECO "B76"]
[WhiteElo "2164"]
[BlackElo "2344"]
[Annotator "RC"]
[PlyCount "127"]
[EventDate "2022.07.21"]
[EventType "tourn"]
[EventCountry "HUN"]
[SourceTitle "playchess.com"]
[Source "ChessBase"]
[SourceQuality "1"]
[TimeControl "40/5400+30:1800+30"]

1. e4 {[%emt 0:05:13]} c5 {[%emt 0:00:47]} 2. Nf3 {[%emt 0:00:11]} d6 {[%emt 0:00:13]} 3. d4 {[%emt 0:00:05]} cxd4 {[%emt 0:00:05]} 4. Nxd4 {[%emt 0:00:04]} Nf6 {[%emt 0:00:05]} 5. Nc3 {[%emt 0:00:06]} g6 {[%emt 0:00:59]} 6. Be3 {[%emt 0:00:10]} Bg7 {[%emt 0:00:06]} 7. f3 {[%emt 0:00:08]} O-O {[%emt 0:00:14]} 8. Qd2 {[%emt 0:00:05]} Nc6 {[%emt 0:00:13]} 9. O-O-O {[%emt 0:00:22]} d5 {[%emt 0:01:12]} 10. Qe1 {[%emt 0:01:01]} e5 {[%emt 0:00:38]} 11. Nxc6 {[%emt 0:00:36]} bxc6 {[%emt 0:00:05]} 12. exd5 {[%emt 0:00:04]} Nxd5 {[%emt 0:00:07]} 13. Bc4 {[%emt 0:01:24]} Be6 {[%emt 0:00:16]} 14. Kb1 {[%emt 0:05:56]} Re8 {[%emt 0:01:17]} 15. h4 {[%emt 0:03:53]} Qc7 {[%emt 0:05:43]} 16. Bc5 {[%emt 0:25:28]} e4 {[%emt 0:21:22]} 17. Nxe4 {[%emt 0:20:15]} Nc3+ {[%emt 0:20:44]} 18. Nxc3 {[%emt 0:00:16]} Bxc4 {[%emt 0:00:08]} 19. Qd2 {[%emt 0:02:04]} Rad8 {[%emt 0:05:37]} 20. Bd6 {[%emt 0:01:24]} Qb6 {[%emt 0:12:48]} 21. Rhe1 {[%emt 0:01:55]} Be6 {[%emt 0:04:39]} 22. Na4 {[%emt 0:07:16]} Qb5 {[%emt 0:02:30]} 23. b3 {[%emt 0:03:48]} h5 {[%emt 0:07:06]} 24. Qb4 {[%emt 0:08:35]} Qf5 {[%emt 0:01:30]} 25. Qf4 {[%emt 0:02:15]} Rxd6 {[%emt 0:01:49]} 26. Qxd6 {[%emt 0:00:53]} Qf6 {[%emt 0:00:21]} 27. c3 {[%emt 0:03:44]} Qxh4 {[%emt 0:00:27]} 28. Kb2 {[%emt 0:00:46]} Kh7 {[%emt 0:01:24]} 29. Re4 {[%emt 0:00:45]} Qg5 {[%emt 0:01:18]} 30. Qd2 {[%emt 0:01:22]} Qa5 {[%emt 0:00:31]} 31. g4 {[%emt 0:01:02]} h4 {[%emt 0:02:06]} 32. f4 {[%emt 0:01:41]} Rb8 {[%emt 0:02:47]} 33. f5 {[%emt 0:03:01]} Bd5 {[%emt 0:01:04]} 34. fxg6+ {[%emt 0:00:01]} fxg6 {[%emt 0:00:07]} 35. Qg5 {[%emt 0:00:52]} Qb5 {[%emt 0:02:23]} 36. Re7 {[%emt 0:01:04]} Rf8 {[%emt 0:04:27]} 37. Rd2 {[%emt 0:00:38]} h3 {[%emt 0:01:15]} 38. Qh4+ {[%emt 0:00:30]} Kg8 {[%emt 0:00:01]} 39. Qxh3 {[%emt 0:00:17]} Rb8 {[%emt 0:01:01]} 40. Qg3 {[%emt 0:00:00]} Bxb3 {[%emt 0:00:00]} 41. Qxb8+ {[%emt 0:05:10]} Qxb8 {[%emt 0:00:53]} 42. axb3 {[%emt 0:00:02]} Bf6 {[%emt 0:03:33]} 43. Re6 {[%emt 0:04:39]} Qf4 {[%emt 0:06:42]} 44. Kc2 {[%emt 0:03:02]} Bg5 {[%emt 0:06:42]} 45. Rxg6+ {[%emt 0:03:42]} Kf7 {[%emt 0:01:05]} 46. Rgd6 {[%emt 0:02:28]} Qe4+ {[%emt 0:01:46]} 47. R2d3 {[%emt 0:00:16]} Qe2+ {[%emt 0:01:26]} 48. Kb1 {[%emt 0:00:10]} Qe1+ {[%emt 0:00:39]} 49. Rd1 {[%emt 0:00:07]} Qe4+ {[%emt 0:00:35]} 50. R6d3 {[%emt 0:00:27]} Qxg4 {[%emt 0:00:49]} 51. Nc5 {[%emt 0:01:04]} Qf5 {[%emt 0:00:52]} 52. Nb7 {[%emt 0:01:53]} Be7 {[%emt 0:00:55]} 53. Kb2 {[%emt 0:00:19]} Qe5 {[%emt 0:03:17]} 54. Rd7 {[%emt 0:00:58]} Ke8 {[%emt 0:00:51]} 55. R7d3 {[%emt 0:05:04]} Qb5 {[%emt 0:02:06]} 56. Nd6+ {[%emt 0:00:56]} Bxd6 {[%emt 0:00:03]} 57. Rxd6 {[%emt 0:00:07]} a5 {[%emt 0:00:52]} 58. Re1+ {[%emt 0:00:56]} Kf7 {[%emt 0:00:23]} 59. Rd4 {[%emt 0:00:34]} Qf5 {[%emt 0:01:38]} 60. Re2 {[%emt 0:01:19]} Qb5 {[%emt 0:00:40]} 61. Rf4+ {[%emt 0:00:25]} Kg6 {[%emt 0:00:52]} 62. Rg2+ {[%emt 0:00:07]} Kh5 {[%emt 0:00:13]} 63. Rf8 {[%emt 0:00:55]} Qe5 {[%emt 0:01:17]} 64. Rh8+ {[%emt 0:00:15]} 1-0